Cogmind - Beta 15 --- EXPLORER MODE // 2025.05.22 @ 11:48:54 Player: rootmos Result: Self-destructed Performance ------------- Evolutions (1) 500 Regions Visited (2) 400 Robots Destroyed (18) 90 Value Destroyed (447) 447 Prototype IDs (2) 40 Alien Tech Used (0) 0 Bonus (0) 0 TOTAL SCORE: 1477 Bonus ------- None Cogmind --------- Core Integrity 310/400 Matter 299/300 Energy 0/100 System Corruption 2% Temperature Cool (0) Movement Rolling (195) Ox7 Location -9/Materials Parts ------- > --- POWER (1) -------- (None) > --- PROPULSION (2) --- Armored Wheel > --- UTILITY (5) ------ Heat Sink Huge Storage Unit ECM Suite Utility Shielding > --- WEAPON (2) ------- Light Assault Rifle Light Assault Rifle > --- INVENTORY (25) --- (None) Peak State ------------ > --- POWER ------------ Light Ion Engine > --- PROPULSION ------- Armored Wheel Armored Wheel > --- UTILITY ---------- Huge Storage Unit Terrain Scanner Improved Targeting Computer Light Armor Plating Tractor Beam > --- WEAPON ----------- Light Assault Rifle Light Assault Rifle > --- INVENTORY -------- Heat Sink ECM Suite Utility Shielding EM Pulse Gun [Rating: 13] Favorites ----------- Power Light Ion Engine Engine Light Ion Engine Propulsion Aluminum Leg Treads Light Treads Leg Aluminum Leg Wheel Armored Wheel Flight Unit Flight Unit Utility Terrain Scanner Device Terrain Scanner Storage Huge Storage Unit Processor Targeting Computer Protection Light Armor Plating Weapon Light Assault Rifle Energy Gun EM Pulse Gun Ballistic Gun Light Assault Rifle Build | -11 -10 -9 ------- Run | Yrd Mat Mat Slots Evolved 3 | . 1 2 Power . | . . . Propulsion . | . . . Utility 3 | . 1 2 Weapon . | . . . Parts Attached 23 | 8 8 7 Power 2 | 1 1 . Engine 2 | 1 1 . Core . | . . . Reactor . | . . . Propulsion 8 | 3 3 2 Treads 1 | 1 . . Leg 2 | 2 . . Wheel 3 | . 1 2 Hover . | . . . Flight 2 | . 2 . Utility 10 | 2 3 5 Device 4 | . 1 3 Storage 2 | . 2 . Processor 2 | 1 . 1 Hackware . | . . . Protection 2 | 1 . 1 Artifact . | . . . Weapon 3 | 2 1 . Energy Gun 1 | 1 . . Energy Cannon . | . . . Ballistic Gun 2 | 1 1 . Ballistic Cannon . | . . . Launcher . | . . . Special Weapon . | . . . Impact Weapon . | . . . Slashing Weapon . | . . . Piercing Weapon . | . . . Special Melee Weapon . | . . . Unidentified Prototypes . | . . . Parts Lost 7 | . . 7 Power 1 | . . 1 Propulsion 1 | . . 1 Utility 4 | . . 4 Weapon 1 | . . 1 Highest Loss Streak 6 | . . 6 To Critical Strikes . | . . . Average Backups 3 | . 4 3 Power . | . . . Propulsion . | . . . Utility 3 | . 3 2 Weapon . | . . . Tool/Special . | . . . Unused Backups 5 | . . 5 Power . | . . . Propulsion . | . . . Utility 5 | . . 5 Weapon . | . . . Tool/Special . | . . . Average Slot Usage (%) 94 | . 97 88 Engine 10 | . 12 7 Leg 11 | . 17 . Wheel 7 | . 3 15 Flight 3 | . 3 2 Device 13 | . 10 19 Storage 9 | . 9 10 Processor 9 | . 12 5 Protection 4 | . 2 8 Energy Gun 8 | . 12 2 Ballistic Gun 13 | . 12 16 Peak Build Rating 13 | 7 8 13 Average Rating 8 | 5 7 10 On Entrance 5 | . 7 8 Naked Turns . | . . . Heaviest Build 93 | 9 87 93 Greatest Support 24 | 20 20 24 Greatest Overweight (x) 21 | . 21 10 Average Overweight (x) 3 | . 3 3 Largest Inventory Capacity 25 | 5 25 25 Average Capacity 21 | 5 20 25 Most Carried 9 | . 9 9 Average Carried 3 | . 4 3 Final Capacity 25 | 5 25 25 Final Carried 9 | . 9 . Class Distribution -------------------- 100% | Hacker-Mutant Dominant Class ---------------- Hacker-Mutant | -10/Materials Hacker-Mutant | -9/Materials Resources | -11 -10 -9 ----------- Run | Yrd Mat Mat Matter Collected 548 | 251 122 175 Remotely 131 | . . 131 Salvage Created 570 | . 242 328 Parts 38 | . 18 20 Haulers Intercepted . | . . . Recyclers Shooed . | . . . Parts Field Recycled . | . . . Retrieved Matter . | . . . Parts Self-Destructed . | . . . Prevented . | . . . Kills | -11 -10 -9 ------- Run | Yrd Mat Mat Combat Hostiles Destroyed 15 | . 8 7 Guns 15 | . 8 7 Classes Destroyed 7 | . 4 3 Worker 1 | . 1 . Builder 1 | . . 1 Watcher 1 | . 1 . Swarmer 6 | . 6 . Grunt 7 | . 2 5 Brawler 1 | . . 1 Sentry 1 | . . 1 Best Kill Streak 5 | . 2 5 Combat Bots Only 4 | . 2 4 Max Kills in Single Turn 1 | . 1 1 Gunslinging . | . . . Exploded . | . . . Melee . | . . . Uniques/NPCs Destroyed . | . . . Combat | -11 -10 -9 -------- Run | Yrd Mat Mat Hostile Shots Fired 124 | . 34 90 Missed 34 | . 12 22 Hits 90 | . 22 68 Melee 6 | . . 6 Projectile 84 | . 22 62 Critical Strikes 3 | . . 3 Damage Taken 750 | . 142 608 Core 116 | . 26 90 Absorbed by Shields . | . . . Redirected to Shielding 8 | . . 8 Ignored by Resistances 461 | . 90 371 Core Remaining (%) 94 | 100 89 . Volleys Fired 69 | 1 25 43 Largest 2 | 2 2 2 Hottest 60 | 60 60 60 Shots Fired 135 | 2 49 84 Gun 135 | 2 49 84 Cannon . | . . . Launcher . | . . . Special . | . . . Kinetic 102 | 1 25 76 Thermal . | . . . Explosive . | . . . Electromagnetic 33 | 1 24 8 Robot Hit Streak 26 | 2 7 26 Robot Miss Streak 3 | . 3 1 Penetration Max . | . . . Secondary Targets 3 | . 1 2 Max Gunslinging Chain 1 | . 1 1 Shots Hit Robots 103 | 2 29 72 Core Hits 37 | . 15 22 Critical Kills 1 | . . 1 Critical Parts Destroyed 1 | . . 1 Critical Strikes 3 | . . 3 Destroy 2 | . . 2 Corrupt 1 | . . 1 Melee Attacks . | . . . Impact . | . . . Slashing . | . . . Piercing . | . . . Sneak Attacks . | . . . Combat Hostiles . | . . . Follow-up Attacks . | . . . Damage Inflicted 999 | 18 353 628 Guns 896 | 18 270 608 Cannons . | . . . Explosions 39 | . 39 . Melee . | . . . Ramming 64 | . 44 20 Kinetic 617 | 6 99 512 Thermal 39 | . 39 . Explosive . | . . . Electromagnetic 279 | 12 171 96 Impact . | . . . Slashing . | . . . Piercing . | . . . Highest Corruption 2 | . 1 2 Average Corruption 1 | . 1 1 Corruption Purged . | . . . Corruption Blocked . | . . . Effects 9 | . 6 3 Message Errors 2 | . 2 . Heat Flow Errors 2 | . 1 1 Energy Discharges 1 | . . 1 Data Loss (minor) 3 | . 2 1 Weapon Failures 1 | . 1 . Overload Shots . | . . . Overflow Damage . | . . . Projectiles . | . . . Explosions . | . . . Melee . | . . . Knockbacks . | . . . Impact . | . . . Kinetic . | . . . Secondary . | . . . Self-Inflicted Damage 18 | . 9 9 Shots . | . . . Rammed 5 | . 3 2 Targets Rammed 8 | . 6 2 Kicked 3 | . 3 . Crushed . | . . . Highest Temperature 272 | 26 107 272 Average Temperature 80 | 16 23 144 Received Heat Transfer 498 | . 78 420 Siege Activations . | . . . Martial Activations . | . . . Shielding Activations . | . . . Robots Disrupted . | . . . Combat Hostiles . | . . . Robots Corrupted . | . . . Combat Hostiles . | . . . Parts Fried 1 | . . 1 Impact Corruptions . | . . . Robots Melted . | . . . Combat Hostiles . | . . . Parts Melted . | . . . Heat Transferred 50 | . 50 . Parts Sabotaged . | . . . Parts Stolen . | . . . Parts Stripped . | . . . Power Chain Reactions 1 | . 1 . Alert | -11 -10 -9 ------- Run | Yrd Mat Mat Maximum Alert Level . | . . . Low Security (%) 100 | 100 100 100 Level 1 . | . . . Level 2 . | . . . Level 3 . | . . . Level 4 . | . . . Level 5 . | . . . High Security . | . . . Max Security . | . . . Peak Influence 50 | . 50 50 Initial . | . . . Average 7 | . 6 11 Influence Increases 423 | . 230 193 Destroy 0b10 Robot/C 300 | . 160 140 Destroy 0b10 Robot/NC 15 | . 10 5 Destroy Leader 82 | . 42 40 Successful Hack 13 | . 5 8 Disable Machine 8 | . 8 . Destroy Structure 5 | . 5 . Influence Decreases 423 | . 230 193 Time Decay 378 | . 230 148 Lost Part 45 | . . 45 Squads Dispatched 2 | . . 2 Investigation . | . . . Extermination . | . . . Reinforcement 2 | . . 2 Assault . | . . . Garrison . | . . . Intercept . | . . . Searches Triggered . | . . . Construction Impeded . | . . . Haulers Reinforced . | . . . Active Scanning Responses . | . . . Cargo Convoy Interrupts . | . . . Stealth | -11 -10 -9 --------- Run | Yrd Mat Mat Distress Signals . | . . . Communications Jammed . | . . . Distress Signals . | . . . Times Spotted 27 | . 10 17 Peak Tracking Total 6 | . 3 6 Tactical Retreats 1 | . . 1 Traps | -11 -10 -9 ------- Run | Yrd Mat Mat Traps Triggered 2 | . 1 1 Indirectly . | . . . Trap Hack Attempts . | . . . Triggered . | . . . Disarmed . | . . . Reprogrammed . | . . . Reused . | . . . Traps Extracted . | . . . Installed . | . . . Triggered . | . . . Machines | -11 -10 -9 ---------- Run | Yrd Mat Mat Machines Disabled 2 | . 2 . Max in Single Turn 1 | . 1 . Machines Repaired . | . . . Machines Dismantled . | . . . Machines Sabotaged . | . . . Overloaded Fab Kills . | . . . Hacking | -11 -10 -9 --------- Run | Yrd Mat Mat Machines Accessed 5 | . 4 1 Terminals 5 | . 4 1 Fabricators . | . . . Repair Stations . | . . . Recycling Units . | . . . Scanalyzers . | . . . Garrison Access . | . . . Total Hacks 11 | . 7 4 Successful 6 | . 4 2 Failed 5 | . 3 2 Catastrophic . | . . . Database Lockouts . | . . . Manual . | . . . Terminals 11 | . 7 4 Fabricators . | . . . Repair Stations . | . . . Recycling Units . | . . . Scanalyzers . | . . . Garrison Access . | . . . Terminal Hacks 6 | . 4 2 Robot Analysis 1 | . 1 . Prototype ID Bank 1 | . . 1 Registered Components 2 | . 1 1 Zone Layout 2 | . 2 . Fabricator Hacks . | . . . Repair Station Hacks . | . . . Recycling Unit Hacks . | . . . Scanalyzer . | . . . Garrison Access Hacks . | . . . Unauthorized Hacks . | . . . Terminals . | . . . Fabricators . | . . . Repair Stations . | . . . Recycling Units . | . . . Scanalyzers . | . . . Garrison Access . | . . . Data Cores Recovered . | . . . Used . | . . . Hacking Detections 2 | . 1 1 Full Trace Events 1 | . 1 . Feedback Events . | . . . Feedback Blocked . | . . . Robot Schematics Acquired . | . . . Robots Built . | . . . Authchips . | . . . Time . | . . . Total Robot Build Rating . | . . . Part Schematics Acquired . | . . . Parts Built . | . . . Authchips . | . . . Time . | . . . Total Part Build Rating . | . . . Parts Repaired . | . . . Time . | . . . Parts Recycled . | . . . Recycled Matter . | . . . Retrieved Matter . | . . . Retrieved Components . | . . . Parts Scanalyzed . | . . . Part Schematics Acquired . | . . . Parts Damaged . | . . . Bothacking | -11 -10 -9 ------------ Run | Yrd Mat Mat Used RIF Installer . | . . . Robots Hacked . | . . . Non-combat . | . . . Combat . | . . . Robot Hacks Applied . | . . . Relay Couplers Released . | . . . Fabnet Peak Effective % . | . . . Robots Rewired . | . . . Allies Hacked . | . . . Hacks Repelled . | . . . Allies | -11 -10 -9 -------- Run | Yrd Mat Mat Total Allies . | . . . Largest Group . | . . . Highest-Rated Group . | . . . Highest-Rated Ally . | . . . Total Orders . | . . . Ally Attacks . | . . . Total Damage . | . . . Kills . | . . . Allies Corrupted . | . . . Allies Melted . | . . . Intel | -11 -10 -9 ------- Run | Yrd Mat Mat Active Infowar (turns) 1219 | . 768 451 Terrain 1110 | . 768 342 ECM 191 | . . 191 Robot Analysis Total 1 | . 1 . Derelict Logs Recovered . | . . . Drone Launches . | . . . Drone Recoveries . | . . . Exploration | -11 -10 -9 ------------- Run | Yrd Mat Mat Turns Passed 1430 | 77 902 451 Spaces Moved 553 | 51 344 158 Core 2 | 2 . . Treads 9 | 9 . . Legs 254 | 40 214 . Wheels 266 | . 115 151 Hover . | . . . Flight 22 | . 15 7 Fastest Speed 50 | 50 120 135 Average Speed 203 | 124 230 169 Slowest Speed 1725 | 160 1725 837 Overloaded Moves . | . . . Propulsion Burnouts . | . . . Robots Hopped . | . . . Potential Cave-ins . | . . . Cave-ins Triggered . | . . . Exploration Rate (%) 30 | 4 64 22 Regions Visited 2 Branch Regions . Pre-discovered Areas . | . . . Known Exits Taken 2 | 1 1 . Unknown Exits Taken . | . . . Scrap Searched . | . . . Spaces Dug . | . . . Terrain Destroyed 5 | . 5 . Melee . | . . . Projectile . | . . . AOE 5 | . 5 . Terrain Rammed . | . . . Walls Destroyed . | . . . Machines Disabled . | . . . Actions | -11 -10 -9 --------- Run | Yrd Mat Mat Total 728 | 59 398 271 Wait 55 | . 5 50 Move 551 | 50 343 158 Hop . | . . . Pick Up 10 | . 8 2 Fast Attach 8 | 7 1 . Attach 6 | . . 6 Detach . | . . . Swap 14 | 1 8 5 Drop 7 | . 2 5 Fire 69 | 1 25 43 Melee . | . . . Ram 5 | . 3 2 Kick 3 | . 3 . Crush . | . . . Escape Stasis . | . . . Rewire . | . . . Trap . | . . . Miscellaneous . | . . . Route ------- -11/Scrapyard -10/Materials (discovered 3 exits: *Mat x2 / *Min) -9/Materials (discovered 1 exit: *Min) History --------- Turn | Location | Event 26 | -11/Scrapyard | Identified exit to Materials 26 | -11/Scrapyard | Discovered exit to Materials (range 16) 78 | -11/Scrapyard | Entered Materials 78 | -10/Materials | Evolved 1 slot: Utility x1 153 | -10/Materials | Identified exit to Mines 153 | -10/Materials | Discovered exit to Mines (range 16) 294 | -10/Materials | Identified exit to Materials 294 | -10/Materials | Discovered exit to Materials (range 15) 316 | -10/Materials | Build established: Hacker-Mutant 800 | -10/Materials | Discovered exit to Materials (range 16) 980 | -10/Materials | Entered another Materials area 980 | -9/Materials | Evolved 2 slots: Utility x2 1260 | -9/Materials | Identified exit to Mines 1260 | -9/Materials | Discovered exit to Mines (range 9) 1365 | -9/Materials | Lost 6 parts (1p1n3u1w) 1431 | -9/Materials | Self-destructed Last Messages --------------- 01329_ R-06 Scavenger destroyed. 01331_ Arm. Wheel destroyed. 01331_ K-01 Serf collects debris. 01334_ Lgt. Ion Engine destroyed. 01335_ K-01 Serf collects debris. 01337_ G-34 Mercenary destroyed. 01338_ Y-45 Defender destroyed. 01338_ Switching to secondary target: G-47 Trooper. 01338_ K-01 Serf collects debris. 01341_ K-01 Serf destroyed. 01345_ R-06 Scavenger collects Aluminum Leg. 01346_ G-47 Trooper destroyed. 01348_ R-06 Scavenger collects Aluminum Leg. 01348_ U-05 Engineer suffers critical hit (Destroy). 01348_ U-05 Engineer destroyed. 01351_ R-06 Scavenger collects Aluminum Leg. 01355_ System corrupted: Energy discharge (-14). 01355_ R-06 Scavenger collects Ion Engine. 01376_ Acquired 44 matter. 01429_ K-01 Serf collects debris. Map ----- +----------------------------------------------------+ | ?????????????????????????????????????????????????? | | ?????????????????????????????????????????????????? | | ?????????????????????????????????????????????????? | | ?????????????????????????????????????????????????? | | ?????????????????????????????????????????????????? | | ?????????????????????????????????????????????????? | | ?????????????????????????????????????????????????? | | ?????????????????????????????????????????????????? | | ?????????????????????????????????????????????????? | | ???????????????????????????????????????? ????????? | | ???????????????????????????????????????? ????????? | | ???????????????????????????????????????? ????????? | | ???????????????????????????????????? ??? ????????? | | ???????????????????????????????? ??????? ??????? ? | | ????????????????????????????????????????+????? ??? | | ???????????????????????????????????????? ????????? | | ???????????????????????????????????????# #???#???? | | ???????????????????????????????#???????# #???????? | | ??????????????????????????????????#????# #???????? | | ??????????????????????????????????? ???/ ??? ???? | | ?????????????????????[?????????????????# #?????? ? | | ???????????????????????????????????????# #??#?? ? | | ????????????????????????????????????? ?# #????#??? | | ????????????#+#########+###???########## #?####### | | ??????????# ##### [##=### | | ?????????? @! = =[ ! * [%!# | | ???????????????""" """ % !%> ! !=!/ | | ?????????????????" """ !== = k= # | | ?????????????????" """ #####" !"## # | | ?????????????????? #???#" !"! "## # | | ?????????????????? #???#"""""""## # | | ?????????????????" """ #???########## # | | ?????????????????" """ #????#???????# # | | ????????????????"" """ #????? ??????# ####+## | | ???????????????? ? ???????????? # #?# | | ????????????????? ??? ?????????????+ #?# | | ?????????????????????"T"w ?????????????# | | ????????????????????? ?????????????# | | ??????????????????????? ????????????# | | ???????????????????????r ??????????? | | ??????????????????????? ?????????? | | ??????????????????????????????????? | | ????????????????????????????????????+## ##+### | | ??????????????????????????????????????######? ??? | | ????????????????????????????????????????????#[???? | | ????????????????????????????????????????????# ???? | | ????????????????????????????????????????????#????? | | ???????????????????????????????????????????????"?? | | ?????????????????????????????????????????????????? | | ?????????????????????????????????????????????????? | +----------------------------------------------------+ Best States ------------- Heat Dissipation 38 Energy Generation 10 Energy Capacity 125 Matter Stores 300 Matter Capacity 300 Sight Range 16 Terrain Scan Range 14 Terrain Scan Density 10 ECM Strength 1 Armor Coverage 150 Resistance: KI 35 Resistance: TH 35 Resistance: EX 35 Resistance: EM 35 Resistance: I 35 Resistance: S 35 Resistance: P 35 Utility Shielding 33 Evasion (%) 55 Targeting Accuracy 6 Recoil Reduction 1 Offensive Hacking 20 Item Schematics ----------------- None Robot Schematics ------------------ None Fabricated ------------ Nothing Repaired ---------- Nothing Alien Tech Used ----------------- None Achievements -------------- Use The Force Challenges ------------ None Game ------ Seed MiningThermalChronowheel Manual? 0 Play Time 00:20:18 Cumulative 29.9 hours Start 2025.05.22 @ 11:31:02 End 2025.05.22 @ 11:48:54 Sessions 1 Manual Loads 0 Difficulty Explorer Special Mode None Game No. 13 Rogue 0 Adventurer 0 Explorer 13 Win Type - Total 0 Types 0/0/0/0/0/0/0/0/0/0 Lore% 10 Gallery% 14 Achievement% 17 Wizard Run 0 Options --------- Layout 0 ASCII 1 Keyboard 1 Movement Vi Keybinds 0 Fullscreen 2 Font 24/Smallcaps Map View 76x50 Zoom Use 0% Tactical HUD 1 Map Filters NONE Filters NONE Steam 0 RUN: 1411cdf9-7b1c-4a96-b275-f650a2812b2a